[Event "Mistrovství Čech mládeže 2023 - HD12"]
[Site "Harrachov, Czech Republic"]
[Date "2023.10.26"]
[Round "7.7"]
[White "Školoud, Natanael"]
[Black "Kolář, Edvard"]
[Result "1/2-1/2"]
[TimeControl "90m + 30s"]
[WhiteElo "1193"]
[BlackElo "1473"]

1. e4 {[%clk 01:30:58]} {[%emt 00:00:02]} c5 {[%clk 01:30:56]} {[%emt
00:00:04]} 2. Nf3 {[%clk 01:31:25]} {[%emt 00:00:03]} Nc6 {[%clk 01:31:20]}
{[%emt 00:00:04]} 3. c3 {[%clk 01:31:51]} {[%emt 00:00:05]} d5 {[%clk
01:31:45]} {[%emt 00:00:06]} 4. exd5 {[%clk 01:31:15]} {[%emt 00:01:06]} Qxd5
{[%clk 01:32:03]} {[%emt 00:00:09]} 5. d4 {[%clk 01:30:50]} {[%emt 00:00:58]}
Bf5 {[%clk 01:31:24]} {[%emt 00:01:10]} 6. Be2 {[%clk 01:29:50]} {[%emt
00:01:29]} cxd4 {[%clk 01:31:08]} {[%emt 00:00:46]} 7. cxd4 {[%clk 01:29:25]}
{[%emt 00:00:56]} Bxb1 {[%clk 01:27:59]} {[%emt 00:03:39]} 8. Rxb1 {[%clk
01:29:39]} {[%emt 00:00:15]} e6 {[%clk 01:25:44]} {[%emt 00:02:45]} 9. a3
{[%clk 01:29:06]} {[%emt 00:01:04]} Nf6 {[%clk 01:20:50]} {[%emt 00:05:22]} 10.
O-O {[%clk 01:26:54]} {[%emt 00:02:43]} Be7 {[%clk 01:18:49]} {[%emt 00:02:28]}
11. Be3 {[%clk 01:23:49]} {[%emt 00:03:38]} O-O {[%clk 01:15:42]} {[%emt
00:03:36]} 12. Rc1 {[%clk 01:21:45]} {[%emt 00:02:36]} Kh8 {[%clk 01:09:47]}
{[%emt 00:06:24]} 13. Qd3 {[%clk 01:19:10]} {[%emt 00:03:05]} Rad8 {[%emt
00:07:40]} 14. Rfd1 {[%clk 01:05:14]} {[%emt 00:05:44]} Ne4 15. Qc4 {[%clk
01:01:00]} {[%emt 00:17:21]} Qd6 16. Bd3 {[%clk 00:58:18]} {[%emt 00:09:32]}
Nf6 17. Bb1 {[%clk 00:57:05]} {[%emt 00:24:17]} Nd5 18. Qd3 {[%emt 00:03:41]}
f5 {[%emt 00:00:17]} 19. Rd2 {[%clk 00:52:27]} {[%emt 00:05:05]} Rg8 {[%clk
00:23:19]} {[%emt 00:06:03]} 20. Bg5 {[%clk 00:46:33]} {[%emt 00:06:23]} Bxg5
{[%clk 00:16:21]} {[%emt 00:07:29]} 21. Nxg5 {[%clk 00:46:50]} {[%emt
00:00:13]} Qe7 {[%clk 00:16:11]} {[%emt 00:00:35]} 22. Nf3 {[%clk 00:44:48]}
{[%emt 00:02:37]} g5 {[%clk 00:14:25]} {[%emt 00:02:16]} 23. Re1 {[%clk
00:39:38]} {[%emt 00:05:39]} Rg7 {[%clk 00:08:56]} {[%emt 00:06:00]} 24. Ba2
{[%clk 00:37:59]} {[%emt 00:02:09]} Qd6 {[%clk 00:07:22]} {[%emt 00:02:02]} 25.
Red1 {[%clk 00:24:52]} {[%emt 00:13:38]} Rdg8 {[%clk 00:05:15]} {[%emt
00:02:36]} 26. Re1 {[%clk 00:22:46]} {[%emt 00:02:38]} g4 {[%clk 00:04:05]}
{[%emt 00:01:39]} 27. Ne5 {[%clk 00:22:29]} {[%emt 00:00:47]} f4 {[%clk
00:03:15]} {[%emt 00:01:21]} 28. Bb1 {[%clk 00:20:41]} {[%emt 00:02:18]} Qe7
{[%clk 00:01:08]} {[%emt 00:02:37]} 29. g3 {[%clk 00:19:22]} {[%emt 00:01:50]}
Nxe5 {[%emt 00:01:07]} 30. dxe5 {[%clk 00:19:11]} {[%emt 00:00:38]} Qg5 {[%clk
00:00:32]} {[%emt 00:00:30]} 31. Qf1 {[%clk 00:18:03]} {[%emt 00:01:38]} Rf8
{[%clk 00:00:34]} {[%emt 00:00:28]} 32. Rd4 {[%clk 00:17:03]} {[%emt 00:01:31]}
fxg3 {[%clk 00:00:58]} {[%emt 00:00:06]} 33. hxg3 {[%clk 00:17:24]} {[%emt
00:00:09]} Qh6 {[%clk 00:00:41]} {[%emt 00:00:37]} 34. Qg2 {[%clk 00:17:35]}
{[%emt 00:00:28]} Rf3 {[%clk 00:00:32]} {[%emt 00:00:40]} 35. Rxg4 {[%clk
00:14:49]} {[%emt 00:03:15]} Rgf7 {[%clk 00:00:32]} {[%emt 00:00:30]} 36. Rh4
{[%clk 00:13:34]} {[%emt 00:01:46]} Qd2 {[%clk 00:00:33]} {[%emt 00:00:30]} 37.
Rf1 {[%clk 00:13:21]} {[%emt 00:00:42]} Ne3 {[%clk 00:00:51]} {[%emt 00:00:12]}
38. Qh2 {[%clk 00:12:34]} {[%emt 00:01:17]} Rxg3+ {[%clk 00:00:31]} {[%emt
00:00:50]} 39. Qxg3 {[%clk 00:12:00]} {[%emt 00:01:04]} Nxf1 {[%clk 00:00:51]}
{[%emt 00:00:10]} 40. Kxf1 {[%clk 00:09:40]} {[%emt 00:02:50]} Qd1+ {[%clk
00:01:12]} {[%emt 00:00:09]} 41. Kg2 {[%clk 00:09:23]} {[%emt 00:00:46]} Qxb1
{[%clk 00:00:35]} {[%emt 00:01:07]} 42. Rg4 {[%clk 00:07:09]} {[%emt 00:02:44]}
Rf8 {[%clk 00:00:38]} {[%emt 00:00:29]} 43. b4 {[%clk 00:06:40]} 1/2-1/2

[Event "Mistrovství Čech mládeže 2023 - HD12"]
[Site "Harrachov, Czech Republic"]
[Date "2023.10.26"]
[Round "7.8"]
[White "Zischka, Vít"]
[Black "Kubát, Jonáš"]
[Result "1-0"]
[TimeControl "90m + 30s"]
[WhiteElo "1274"]
[BlackElo "1423"]

1. e4 {[%clk 01:30:57]} {[%emt 00:00:03]} c6 {[%clk 01:30:55]} {[%emt
00:00:05]} 2. d4 {[%clk 01:31:21]} {[%emt 00:00:06]} d5 {[%clk 01:31:21]}
{[%emt 00:00:05]} 3. e5 {[%clk 01:31:48]} {[%emt 00:00:03]} c5 {[%clk
01:31:43]} {[%emt 00:00:08]} 4. c3 {[%clk 01:32:03]} {[%emt 00:00:14]} Nc6
{[%clk 01:32:07]} {[%emt 00:00:07]} 5. Be2 {[%emt 00:00:09]} Qb6 {[%clk
01:31:50]} {[%emt 00:00:47]} 6. Nf3 {[%clk 01:27:16]} {[%emt 00:05:38]} Bg4
{[%clk 01:31:46]} {[%emt 00:00:33]} 7. Nbd2 {[%clk 01:27:25]} {[%emt 00:00:21]}
e6 {[%clk 01:31:16]} {[%emt 00:01:01]} 8. O-O {[%clk 01:27:19]} {[%emt
00:00:35]} Nh6 {[%clk 01:30:46]} {[%emt 00:00:59]} 9. h3 {[%clk 01:24:35]}
{[%emt 00:03:15]} Bxf3 {[%clk 01:31:05]} {[%emt 00:00:12]} 10. Nxf3 {[%clk
01:24:56]} {[%emt 00:00:09]} Nf5 {[%clk 01:31:28]} {[%emt 00:00:06]} 11. Bd3
{[%clk 01:20:57]} {[%emt 00:04:29]} Nfe7 {[%clk 01:29:24]} {[%emt 00:02:34]} 12.
dxc5 {[%clk 01:17:54]} {[%emt 00:03:34]} Qxc5 {[%clk 01:29:28]} {[%emt
00:00:25]} 13. Be3 {[%clk 01:17:53]} {[%emt 00:00:31]} Qa5 {[%clk 01:29:49]}
{[%emt 00:00:09]} 14. b4 {[%clk 01:06:46]} {[%emt 00:11:38]} Qc7 {[%clk
01:29:29]} {[%emt 00:00:49]} 15. Qa4 {[%clk 01:00:18]} {[%emt 00:06:59]} b6
{[%clk 01:22:39]} {[%emt 00:07:20]} 16. Nd4 {[%clk 00:59:21]} {[%emt 00:01:27]}
Kd8 {[%clk 01:20:36]} {[%emt 00:02:32]} 17. Nxc6+ {[%clk 00:54:04]} {[%emt
00:05:47]} Nxc6 {[%clk 01:20:52]} {[%emt 00:00:14]} 18. f4 {[%clk 00:53:14]}
{[%emt 00:01:20]} Be7 {[%clk 01:18:07]} {[%emt 00:03:14]} 19. Bb5 {[%clk
00:49:32]} {[%emt 00:04:13]} Kd7 {[%clk 01:11:15]} {[%emt 00:07:23]} 20. c4
{[%clk 00:46:31]} {[%emt 00:03:31]} a6 {[%clk 01:08:09]} {[%emt 00:03:35]} 21.
cxd5 {[%clk 00:41:42]} {[%emt 00:05:19]} axb5 {[%clk 01:07:58]} {[%emt
00:00:41]} 22. dxc6+ {[%clk 00:40:14]} {[%emt 00:01:59]} Qxc6 {[%clk 01:08:03]}
{[%emt 00:00:25]} 23. Rfd1+ {[%clk 00:39:24]} {[%emt 00:01:19]} Kc7 {[%clk
01:07:13]} {[%emt 00:01:20]} 24. Qb3 {[%clk 00:38:41]} {[%emt 00:01:14]} Kb7
{[%clk 01:06:46]} {[%emt 00:00:56]} 25. Rac1 {[%clk 00:37:00]} {[%emt
00:02:12]} Qe8 {[%clk 01:05:06]} {[%emt 00:02:10]} 26. Qd3 {[%clk 00:33:33]}
{[%emt 00:03:56]} Rd8 {[%clk 01:04:07]} {[%emt 00:01:30]} 27. Qe4+ {[%clk
00:32:55]} {[%emt 00:01:07]} Kb8 {[%clk 01:02:48]} {[%emt 00:01:49]} 28. Rxd8+
{[%clk 00:30:07]} {[%emt 00:03:19]} Qxd8 {[%clk 01:02:02]} {[%emt 00:01:15]} 29.
Qc6 {[%clk 00:29:26]} {[%emt 00:01:11]} Bxb4 {[%clk 01:00:30]} {[%emt
00:02:02]} 30. Bxb6 {[%clk 00:29:11]} {[%emt 00:00:45]} 1-0

[Event "Mistrovství Čech mládeže 2023 - HD12"]
[Site "Harrachov, Czech Republic"]
[Date "2023.10.26"]
[Round "7.9"]
[White "Fadrný, Jáchym"]
[Black "Štěpánková, Linda"]
[Result "0-1"]
[TimeControl "90m + 30s"]
[WhiteElo "1365"]
[BlackElo "1281"]

1. e4 {[%clk 01:30:47]} {[%emt 00:00:12]} d5 {[%clk 01:30:36]} {[%emt
00:00:25]} 2. exd5 {[%clk 01:31:00]} {[%emt 00:00:16]} Qxd5 {[%clk 01:30:44]}
{[%emt 00:00:22]} 3. Nc3 {[%clk 01:31:13]} {[%emt 00:00:18]} Qd6 {[%clk
01:31:06]} {[%emt 00:00:07]} 4. d4 {[%clk 01:31:32]} {[%emt 00:00:10]} Nf6
{[%clk 01:30:09]} {[%emt 00:01:27]} 5. Nf3 {[%clk 01:31:01]} {[%emt 00:01:01]}
Bg4 {[%clk 01:30:11]} {[%emt 00:00:28]} 6. h3 {[%clk 01:30:03]} {[%emt
00:01:29]} Bh5 {[%clk 01:29:48]} {[%emt 00:00:52]} 7. g4 {[%clk 01:27:11]}
{[%emt 00:03:22]} Bg6 {[%clk 01:30:05]} {[%emt 00:00:13]} 8. Ne5 {[%clk
01:27:07]} {[%emt 00:00:34]} e6 {[%clk 01:26:33]} {[%emt 00:04:03]} 9. Bf4
{[%clk 01:24:03]} {[%emt 00:03:33]} Qb4 {[%clk 01:13:33]} {[%emt 00:13:30]} 10.
Nxg6 {[%clk 00:52:40]} {[%emt 00:31:53]} hxg6 {[%clk 01:13:00]} {[%emt
00:01:03]} 11. Qd2 {[%clk 00:48:58]} {[%emt 00:04:12]} Bd6 {[%clk 00:57:58]}
{[%emt 00:15:33]} 12. Bxd6 {[%clk 00:36:28]} {[%emt 00:13:00]} Qxd6 {[%clk
00:55:49]} {[%emt 00:02:38]} 13. Bg2 {[%clk 00:35:27]} {[%emt 00:01:31]} c6
{[%clk 00:54:12]} {[%emt 00:02:08]} 14. Na4 {[%clk 00:26:11]} {[%emt 00:09:45]}
Nbd7 {[%clk 00:44:48]} {[%emt 00:09:55]} 15. O-O-O {[%clk 00:19:38]} {[%emt
00:07:02]} O-O-O {[%clk 00:34:44]} {[%emt 00:10:35]} 16. Rhe1 {[%emt 00:08:57]}
Qh2 {[%clk 00:29:09]} {[%emt 00:00:18]} 17. Bf1 {[%clk 00:13:10]} {[%emt
00:04:17]} Nd5 {[%clk 00:25:22]} {[%emt 00:04:17]} 18. Qe2 {[%clk 00:09:48]}
{[%emt 00:03:50]} Rhe8 {[%clk 00:20:17]} {[%emt 00:05:38]} 19. Qf3 {[%clk
00:07:55]} {[%emt 00:02:16]} Qf4+ {[%clk 00:18:19]} {[%emt 00:02:34]} 20. Qxf4
{[%clk 00:06:29]} {[%emt 00:01:56]} Nxf4 {[%clk 00:18:41]} {[%emt 00:00:08]} 21.
Re4 {[%clk 00:06:50]} {[%emt 00:00:09]} g5 {[%clk 00:18:00]} {[%emt 00:01:11]}
22. h4 {[%clk 00:06:51]} {[%emt 00:00:29]} Nf6 {[%clk 00:17:42]} {[%emt
00:00:48]} 23. Re3 {[%clk 00:06:35]} {[%emt 00:00:44]} gxh4 {[%clk 00:17:20]}
{[%emt 00:00:54]} 24. Rf3 {[%clk 00:06:42]} {[%emt 00:00:23]} g5 {[%clk
00:17:20]} {[%emt 00:00:30]} 25. Nc3 {[%clk 00:06:54]} {[%emt 00:00:19]} Kc7
{[%clk 00:13:37]} {[%emt 00:04:12]} 26. Ne2 {[%clk 00:06:49]} {[%emt 00:00:36]}
N6d5 {[%clk 00:12:58]} {[%emt 00:01:09]} 27. Ng1 {[%clk 00:06:27]} {[%emt
00:00:48]} Rd7 {[%clk 00:12:53]} {[%emt 00:00:38]} 28. c4 {[%clk 00:06:35]}
{[%emt 00:00:22]} Nb6 {[%clk 00:12:26]} {[%emt 00:00:57]} 29. Nh3 {[%clk
00:06:15]} {[%emt 00:00:44]} Nxh3 {[%clk 00:12:32]} {[%emt 00:00:30]} 30. Rxh3
{[%clk 00:06:35]} {[%emt 00:00:10]} Red8 {[%clk 00:11:03]} {[%emt 00:01:59]} 31.
Rf3 {[%clk 00:06:48]} {[%emt 00:00:16]} c5 {[%clk 00:10:00]} {[%emt 00:01:34]}
32. Bg2 {[%clk 00:05:20]} {[%emt 00:01:57]} cxd4 {[%clk 00:08:26]} {[%emt
00:02:05]} 33. Rb3 {[%clk 00:05:13]} {[%emt 00:00:37]} Kb8 {[%clk 00:07:44]}
{[%emt 00:01:12]} 34. c5 {[%clk 00:03:00]} {[%emt 00:02:43]} Rc7 {[%clk
00:05:36]} {[%emt 00:02:38]} 35. c6 {[%clk 00:02:56]} {[%emt 00:00:35]} bxc6
{[%clk 00:05:35]} {[%emt 00:00:30]} 36. a4 {[%clk 00:03:12]} {[%emt 00:00:15]}
Kc8 {[%clk 00:05:42]} {[%emt 00:00:23]} 37. a5 {[%clk 00:01:43]} {[%emt
00:01:59]} Nc4 {[%clk 00:04:17]} {[%emt 00:01:54]} 38. a6 {[%clk 00:01:42]}
{[%emt 00:00:32]} e5 {[%clk 00:03:30]} {[%emt 00:01:16]} 39. Re1 {[%clk
00:01:29]} {[%emt 00:00:42]} f6 {[%clk 00:03:51]} {[%emt 00:00:10]} 40. Rf3
{[%clk 00:01:41]} {[%emt 00:00:18]} Rd6 {[%clk 00:03:30]} {[%emt 00:00:53]} 41.
Kc2 {[%clk 00:01:47]} {[%emt 00:00:22]} Nb6 {[%clk 00:03:12]} {[%emt 00:00:49]}
42. Rb3 {[%clk 00:01:06]} {[%emt 00:01:10]} Nd5 {[%clk 00:02:30]} {[%emt
00:01:13]} 43. Bxd5 {[%clk 00:01:22]} {[%emt 00:00:14]} cxd5+ {[%clk 00:02:37]}
{[%emt 00:00:23]} 44. Kd2 {[%clk 00:01:36]} {[%emt 00:00:16]} Rxa6 {[%clk
00:02:26]} {[%emt 00:00:42]} 45. f4 {[%clk 00:01:02]} {[%emt 00:01:02]} gxf4
{[%clk 00:01:51]} {[%emt 00:01:06]} 46. g5 {[%clk 00:01:22]} {[%emt 00:00:09]}
fxg5 {[%clk 00:01:39]} {[%emt 00:00:43]} 47. Rxe5 {[%clk 00:01:41]} {[%emt
00:00:10]} Rg6 {[%clk 00:01:29]} {[%emt 00:00:41]} 48. Ke2 {[%clk 00:01:10]}
{[%emt 00:01:00]} g4 {[%clk 00:01:31]} {[%emt 00:00:28]} 0-1

[Event "Mistrovství Čech mládeže 2023 - HD12"]
[Site "Harrachov, Czech Republic"]
[Date "2023.10.26"]
[Round "7.10"]
[White "Hokr, Matyáš"]
[Black "Šára, David"]
[Result "0-1"]
[TimeControl "90m + 30s"]
[WhiteElo "1352"]
[BlackElo "1320"]

1. e4 {[%clk 01:30:41]} {[%emt 00:00:18]} e5 {[%clk 01:30:49]} {[%emt
00:00:12]} 2. Nf3 {[%clk 01:30:49]} {[%emt 00:00:22]} Nf6 {[%clk 01:31:11]}
{[%emt 00:00:08]} 3. Nc3 {[%clk 01:30:56]} {[%emt 00:00:22]} Nc6 {[%clk
01:31:24]} {[%emt 00:00:17]} 4. d4 {[%clk 01:30:20]} {[%emt 00:01:07]} exd4
{[%clk 01:31:42]} {[%emt 00:00:12]} 5. Nxd4 {[%clk 01:30:32]} {[%emt 00:00:18]}
Bc5 {[%clk 01:31:49]} {[%emt 00:00:23]} 6. Nxc6 {[%clk 01:29:59]} {[%emt
00:01:03]} bxc6 {[%clk 01:32:11]} {[%emt 00:00:08]} 7. Bc4 {[%clk 01:29:38]}
{[%emt 00:00:50]} O-O {[%clk 01:32:21]} {[%emt 00:00:20]} 8. O-O {[%clk
01:28:41]} {[%emt 00:01:26]} h6 {[%clk 01:31:37]} {[%emt 00:01:15]} 9. Kh1
{[%clk 01:25:59]} {[%emt 00:03:13]} Nh7 {[%clk 01:30:52]} {[%emt 00:01:10]} 10.
f4 {[%clk 01:24:54]} {[%emt 00:01:39]} Qh4 {[%clk 01:30:02]} {[%emt 00:01:01]}
11. Bd2 {[%clk 01:15:27]} {[%emt 00:10:16]} Bb7 {[%clk 01:13:39]} {[%emt
00:16:53]} 12. Be1 {[%clk 01:10:42]} {[%emt 00:05:14]} Qf6 {[%clk 01:11:27]}
{[%emt 00:02:39]} 13. Qxd7 {[%clk 01:02:22]} {[%emt 00:08:54]} Bb6 {[%clk
01:10:27]} {[%emt 00:01:27]} 14. Qg4 {[%clk 01:01:26]} {[%emt 00:01:26]} Qd4
{[%clk 01:09:39]} {[%emt 00:01:15]} 15. Bb3 {[%clk 00:58:14]} {[%emt 00:03:49]}
Nf6 {[%clk 01:09:16]} {[%emt 00:00:47]} 16. Qd1 {[%clk 00:56:47]} {[%emt
00:01:57]} Qc5 {[%clk 01:08:08]} {[%emt 00:01:31]} 17. Na4 {[%clk 00:56:13]}
{[%emt 00:01:12]} Qb5 {[%clk 01:08:14]} {[%emt 00:00:24]} 18. c4 {[%clk
00:55:27]} {[%emt 00:01:19]} Qa6 {[%clk 01:05:22]} {[%emt 00:03:22]} 19. Nxb6
{[%clk 00:55:02]} {[%emt 00:00:57]} Qxb6 {[%clk 01:04:54]} {[%emt 00:00:56]} 20.
Bf2 {[%clk 00:54:46]} {[%emt 00:00:48]} c5 {[%clk 01:05:02]} {[%emt 00:00:22]}
21. e5 {[%clk 00:54:58]} {[%emt 00:00:16]} Ne4 {[%clk 01:04:16]} {[%emt
00:01:18]} 22. Qc2 {[%clk 00:53:26]} {[%emt 00:01:57]} Rfd8 {[%clk 01:02:53]}
{[%emt 00:01:53]} 23. Rad1 {[%clk 00:52:29]} {[%emt 00:01:31]} Qg6 {[%clk
01:01:39]} {[%emt 00:01:35]} 24. Qb1 {[%clk 00:35:59]} {[%emt 00:17:09]} Rxd1
{[%clk 01:00:33]} {[%emt 00:01:36]} 25. Bxd1 {[%clk 00:35:31]} {[%emt
00:00:58]} Nxf2+ {[%clk 01:00:52]} {[%emt 00:00:11]} 0-1

[Event "Mistrovství Čech mládeže 2023 - HD12"]
[Site "Harrachov, Czech Republic"]
[Date "2023.10.26"]
[Round "7.11"]
[White "Mrázik, Marek"]
[Black "Vo, Daniel"]
[Result "1-0"]
[TimeControl "90m + 30s"]
[WhiteElo "1159"]
[BlackElo "1341"]

1. c4 {[%clk 01:29:43]} {[%emt 00:01:17]} e5 {[%clk 01:31:08]} {[%emt
00:00:22]} 2. Nc3 {[%clk 01:29:12]} {[%emt 00:01:00]} Nf6 {[%clk 01:31:11]}
{[%emt 00:00:27]} 3. g3 {[%clk 01:26:37]} {[%emt 00:03:06]} Nc6 {[%clk
01:31:14]} {[%emt 00:00:26]} 4. Bg2 {[%clk 01:26:47]} {[%emt 00:00:21]} Bc5
{[%clk 01:31:15]} {[%emt 00:00:28]} 5. e3 {[%clk 01:26:50]} {[%emt 00:00:28]}
O-O {[%clk 01:31:32]} {[%emt 00:00:12]} 6. Nge2 {[%clk 01:26:59]} {[%emt
00:00:21]} d6 {[%clk 01:31:42]} {[%emt 00:00:20]} 7. O-O {[%clk 01:26:11]}
{[%emt 00:01:18]} Be6 {[%clk 01:31:42]} {[%emt 00:00:29]} 8. d4 {[%clk
01:25:43]} {[%emt 00:01:00]} exd4 {[%clk 01:30:34]} {[%emt 00:01:37]} 9. exd4
{[%clk 01:26:05]} {[%emt 00:00:08]} Bb6 {[%clk 01:28:58]} {[%emt 00:02:07]} 10.
d5 {[%clk 01:26:23]} {[%emt 00:00:12]} Ne5 {[%clk 01:26:38]} {[%emt 00:02:49]}
11. dxe6 {[%emt 00:00:27]} fxe6 {[%clk 01:26:48]} {[%emt 00:00:17]} 12. b3
{[%emt 00:02:33]} Nfg4 {[%clk 01:26:20]} 13. Nd4 {[%clk 01:21:33]} {[%emt
00:04:21]} Qf6 {[%clk 01:23:46]} {[%emt 00:03:01]} 14. Ne4 {[%clk 01:19:00]}
{[%emt 00:03:05]} Qe7 {[%clk 01:20:11]} {[%emt 00:04:04]} 15. Kh1 {[%clk
01:12:32]} {[%emt 00:07:00]} Nf6 {[%clk 01:17:33]} {[%emt 00:03:04]} 16. f4
{[%clk 00:57:48]} {[%emt 00:15:19]} Nc6 {[%clk 01:17:00]} {[%emt 00:00:59]} 17.
Nxc6 {[%clk 00:57:40]} {[%emt 00:00:41]} bxc6 {[%clk 01:13:41]} {[%emt
00:03:48]} 18. Bb2 {[%clk 00:53:35]} {[%emt 00:04:36]} Nxe4 {[%clk 01:10:18]}
{[%emt 00:03:53]} 19. Bxe4 {[%clk 00:51:21]} {[%emt 00:02:43]} d5 {[%clk
01:09:04]} {[%emt 00:01:38]} 20. Bd3 {[%clk 00:44:55]} {[%emt 00:07:03]} d4
{[%clk 01:08:11]} {[%emt 00:01:21]} 21. Qf3 {[%clk 00:42:10]} {[%emt 00:03:16]}
c5 {[%clk 01:08:01]} {[%emt 00:00:40]} 22. Rae1 {[%clk 00:41:32]} {[%emt
00:01:09]} Rae8 {[%clk 01:08:07]} {[%emt 00:00:24]} 23. Re4 {[%clk 00:39:27]}
{[%emt 00:02:35]} Qd7 {[%clk 01:08:11]} {[%emt 00:00:24]} 24. Re5 {[%clk
00:38:29]} {[%emt 00:01:30]} Qf7 {[%clk 01:06:45]} {[%emt 00:01:40]} 25. Qe4
{[%clk 00:37:54]} {[%emt 00:01:21]} g6 {[%clk 01:06:45]} {[%emt 00:00:21]} 26.
Re1 {[%clk 00:37:20]} {[%emt 00:01:13]} Ba5 {[%clk 01:06:12]} {[%emt 00:01:02]}
27. Re2 {[%clk 00:35:46]} {[%emt 00:02:05]} Bc3 {[%clk 01:01:47]} {[%emt
00:04:50]} 28. Ba3 {[%clk 00:32:53]} {[%emt 00:03:59]} Bb4 {[%clk 01:01:08]}
{[%emt 00:01:33]} 29. Bxb4 {[%clk 00:33:01]} {[%emt 00:00:27]} cxb4 {[%clk
01:01:03]} {[%emt 00:00:34]} 30. Rxe6 {[%clk 00:33:09]} {[%emt 00:00:24]} Rxe6
{[%clk 01:01:18]} {[%emt 00:00:13]} 31. Qxe6 {[%clk 00:33:32]} {[%emt
00:00:08]} Qxe6 {[%clk 01:01:42]} {[%emt 00:00:05]} 32. Rxe6 {[%clk 00:33:56]}
{[%emt 00:00:07]} c5 {[%clk 01:01:48]} {[%emt 00:00:24]} 33. Re5 {[%clk
00:33:59]} {[%emt 00:00:28]} Rc8 {[%clk 01:01:29]} {[%emt 00:00:48]} 34. Kg2
{[%clk 00:31:56]} {[%emt 00:02:33]} Kf7 {[%clk 00:57:27]} {[%emt 00:04:30]} 35.
Kf3 {[%clk 00:32:09]} {[%emt 00:00:19]} a5 {[%clk 00:55:56]} {[%emt 00:02:01]}
36. Ke4 {[%clk 00:30:19]} {[%emt 00:02:21]} a4 {[%clk 00:55:49]} {[%emt
00:00:36]} 37. bxa4 {[%clk 00:29:56]} {[%emt 00:00:53]} Ra8 {[%clk 00:55:25]}
{[%emt 00:00:53]} 38. Bc2 {[%clk 00:29:45]} {[%emt 00:00:42]} Ra5 {[%clk
00:55:23]} {[%emt 00:00:31]} 39. Rd5 {[%clk 00:29:31]} {[%emt 00:00:46]} 1-0

[Event "Mistrovství Čech mládeže 2023 - HD12"]
[Site "Harrachov, Czech Republic"]
[Date "2023.10.26"]
[Round "7.12"]
[White "Havlík, David"]
[Black "Štor, Jakub"]
[Result "1-0"]
[TimeControl "90m + 30s"]
[WhiteElo "1331"]
[BlackElo "1275"]

1. e4 {[%clk 01:30:52]} {[%emt 00:00:08]} e5 {[%clk 01:30:55]} {[%emt
00:00:04]} 2. Nf3 {[%clk 01:31:15]} {[%emt 00:00:08]} Nc6 {[%clk 01:31:19]}
{[%emt 00:00:06]} 3. Bb5 {[%clk 01:31:38]} {[%emt 00:00:06]} a6 {[%clk
01:31:24]} {[%emt 00:00:27]} 4. Ba4 {[%clk 01:32:04]} {[%emt 00:00:04]} b5
{[%clk 01:31:48]} {[%emt 00:00:06]} 5. Bb3 {[%clk 01:32:27]} {[%emt 00:00:06]}
Nf6 {[%clk 01:32:00]} {[%emt 00:00:18]} 6. O-O {[%clk 01:32:04]} {[%emt
00:00:53]} Be7 {[%clk 01:31:52]} {[%emt 00:00:38]} 7. Re1 {[%clk 01:32:01]}
{[%emt 00:00:33]} O-O {[%clk 01:31:42]} {[%emt 00:00:40]} 8. c3 {[%clk
01:31:57]} {[%emt 00:00:34]} d6 {[%clk 01:11:46]} {[%emt 00:20:27]} 9. h3
{[%clk 01:29:56]} {[%emt 00:02:30]} Na5 {[%clk 01:11:35]} {[%emt 00:00:40]} 10.
Bc2 {[%clk 01:30:11]} {[%emt 00:00:16]} c5 {[%clk 01:11:52]} {[%emt 00:00:13]}
11. d3 {[%clk 01:29:13]} {[%emt 00:01:28]} Nc6 {[%clk 01:06:57]} {[%emt
00:05:26]} 12. Nbd2 {[%clk 01:25:18]} {[%emt 00:04:24]} Be6 {[%clk 01:07:16]}
{[%emt 00:00:11]} 13. Nf1 {[%clk 01:24:39]} {[%emt 00:01:08]} Qc7 {[%clk
00:59:59]} {[%emt 00:07:46]} 14. Ne3 {[%clk 01:18:22]} {[%emt 00:06:48]} d5
{[%clk 00:55:16]} {[%emt 00:05:13]} 15. exd5 {[%clk 01:18:19]} {[%emt
00:00:33]} Nxd5 {[%clk 00:55:24]} {[%emt 00:00:23]} 16. Nxd5 {[%clk 01:17:04]}
{[%emt 00:01:44]} Bxd5 {[%clk 00:55:09]} {[%emt 00:00:46]} 17. a4 {[%clk
01:15:15]} {[%emt 00:02:19]} b4 {[%clk 00:46:07]} {[%emt 00:09:32]} 18. c4
{[%clk 01:14:49]} {[%emt 00:00:56]} Be6 {[%clk 00:45:07]} {[%emt 00:01:31]} 19.
Qe2 {[%clk 01:12:57]} {[%emt 00:02:20]} Bd6 {[%clk 00:42:29]} {[%emt 00:03:10]}
20. Be3 {[%clk 01:04:29]} {[%emt 00:08:56]} a5 {[%clk 00:41:07]} {[%emt
00:01:54]} 21. Ng5 {[%clk 00:53:58]} {[%emt 00:11:00]} Rae8 {[%clk 00:37:50]}
{[%emt 00:03:47]} 22. d4 {[%clk 00:33:41]} {[%emt 00:20:47]} Bf5 {[%clk
00:30:07]} {[%emt 00:08:12]} 23. Bxf5 {[%clk 00:32:34]} {[%emt 00:01:35]} g6
{[%clk 00:30:28]} {[%emt 00:00:10]} 24. d5 {[%clk 00:32:28]} {[%emt 00:00:37]}
Nd4 {[%clk 00:27:33]} {[%emt 00:03:23]} 25. Bxd4 {[%clk 00:32:14]} {[%emt
00:00:46]} gxf5 {[%clk 00:27:46]} {[%emt 00:00:17]} 26. Qh5 {[%clk 00:32:06]}
{[%emt 00:00:37]} Kg7 {[%clk 00:27:24]} {[%emt 00:00:53]} 27. Be3 {[%clk
00:30:57]} {[%emt 00:01:39]} f4 {[%clk 00:26:23]} {[%emt 00:01:32]} 28. Bd2
{[%clk 00:28:01]} {[%emt 00:03:24]} h6 {[%clk 00:26:21]} {[%emt 00:00:32]} 29.
Nf3 {[%clk 00:27:31]} {[%emt 00:01:01]} Rg8 {[%clk 00:25:20]} {[%emt 00:01:30]}
30. Nh4 {[%clk 00:26:51]} {[%emt 00:01:10]} e4 {[%clk 00:25:01]} {[%emt
00:00:50]} 31. Nf5+ {[%clk 00:26:22]} {[%emt 00:00:59]} Kf6 {[%clk 00:24:50]}
{[%emt 00:00:41]} 32. Nxd6 {[%clk 00:26:16]} {[%emt 00:00:35]} Qxd6 {[%clk
00:24:57]} {[%emt 00:00:24]} 33. Qxh6+ {[%clk 00:26:38]} {[%emt 00:00:07]} Rg6
{[%clk 00:25:18]} {[%emt 00:00:08]} 34. Qxf4+ {[%clk 00:26:53]} {[%emt
00:00:17]} Ke7 {[%clk 00:25:34]} {[%emt 00:00:14]} 35. Qxe4+ {[%clk 00:26:49]}
{[%emt 00:00:33]} Kd7 {[%clk 00:25:43]} {[%emt 00:00:22]} 36. Qxe8+ {[%clk
00:27:11]} {[%emt 00:00:08]} Kc7 {[%clk 00:26:00]} {[%emt 00:00:12]} 37. Qe7+
{[%clk 00:27:34]} 1-0